bitfinex/quotes_ETHUSD_20250519
["timestamp","ask_amount","ask_price","bid_price","bid_amount"]
[1747671271001,4.07315384,2455.1,2455.0,8.369]
[1747671271745,4.07215865,2455.7,2454.6,0.8828]
[1747671271911,4.0734086,2455.0,2454.6,8.8828]
[1747671272109,4.0734086,2455.0,2454.7,1.29568795]
[1747671272326,4.07289827,2455.3,2454.7,5.36943319]
[1747671272644,4.07291334,2455.3,2454.8,4.07355549]
[1747671272802,4.07306719,2455.2,2454.8,0.22600087]
[1747671273001,4.07316956,2455.1,2454.8,0.22600087]
[1747671273225,4.07316956,2455.1,2454.8,0.64783026]
[1747671273742,4.07291087,2455.3,2454.9,8.9656]
[1747671273912,4.07300161,2455.2,2454.9,1.19175645]
[1747671274090,4.07323919,2455.1,2454.9,1.19175645]
[1747671274297,4.07331975,2455.0,2454.9,1.19175645]
[1747671274541,4.07322814,2455.1,2454.9,1.19175645]
[1747671274713,4.07322814,2455.1,2454.9,0.9656]
[1747671275040,4.07306389,2455.2,2454.9,0.9656]
[1747671275241,4.07306389,2455.2,2455.0,0.22630596]
[1747671275437,0.4096,2455.7,2455.0,0.7528615]
[1747671275645,4.07273839,2455.4,2455.0,4.82618026]
[1747671275814,4.07273839,2455.4,2455.1,0.22630596]
[1747671276545,4.07258595,2455.5,2455.1,0.22630596]
[1747671277121,4.07266446,2455.4,2455.1,0.22630596]
[1747671277301,4.07266446,2455.4,2455.1,0.80548739]
[1747671277502,4.07284097,2455.3,2455.1,0.80548739]
[1747671277701,4.07284097,2455.3,2455.2,0.22630596]
[1747671278441,4.07284097,2455.3,2455.1,0.22630596]
[1747671279240,4.07298794,2455.2,2455.1,0.22630596]
[1747671279536,4.07290903,2455.3,2455.1,0.22630596]
[1747671279918,4.07298794,2455.2,2455.1,0.22630596]
[1747671280115,4.07291151,2455.3,2455.1,0.22630596]
[1747671281313,4.07298794,2455.2,2455.1,1.23505211]
[1747671281512,4.07292457,2455.3,2455.1,1.23505211]
[1747671281722,4.07298794,2455.2,2455.1,1.00874615]
[1747671281951,4.07315384,2455.1,2455.0,8.369]
[1747671283662,12.07282205,2455.3,2454.8,0.15295424]
[1747671283838,4.07342552,2455.0,2454.8,0.15295424]
[1747671284227,4.07342552,2455.0,2454.5,4.22702624]
[1747671284856,4.07354586,2454.9,2454.5,4.22702624]
[1747671285160,4.07354586,2454.9,2454.6,1.35185262]
[1747671285375,4.07365326,2454.8,2454.6,1.35185262]
[1747671285659,4.07361633,2454.9,2454.5,4.22710087]
[1747671286324,4.07332142,2455.0,2454.6,4.07387226]
[1747671286524,8.4096,2455.4,2454.6,4.07398354]
[1747671286731,4.07316977,2455.1,2454.6,4.96878354]
[1747671286956,0.4096,2455.4,2454.6,4.96878354]
[1747671286957,4.0733846,2455.0,2454.7,0.91958155]
[1747671287344,4.07355557,2454.9,2454.7,0.91958155]
[1747671287871,4.07340774,2455.0,2454.7,0.91958155]
[1747671288430,4.07317041,2455.1,2454.7,4.99332084]
[1747671288664,4.07319005,2455.1,2454.7,4.99334158]
[1747671288869,4.07332602,2455.0,2454.8,0.60410958]
[1747671289583,4.07332602,2455.0,2454.7,0.91958155]
[1747671290282,4.07322277,2455.1,2454.7,0.91958155]
[1747671290577,4.07322277,2455.1,2454.7,4.99339854]
[1747671290742,4.07322277,2455.1,2454.7,0.91958155]
[1747671291143,4.07301413,2455.2,2454.8,4.07365107]
[1747671291378,4.07330319,2455.1,2454.9,0.49932326]
[1747671291579,4.07331975,2455.0,2454.9,0.49932326]
[1747671292485,4.07305916,2455.2,2454.9,0.49932326]
[1747671293289,0.4096,2455.1,2454.6,0.15295424]
[1747671293479,4.07348784,2454.9,2454.6,0.15295424]
[1747671293988,4.48280503,2455.1,2454.6,0.15295424]
[1747671293989,4.07320503,2455.1,2454.7,0.9135]
[1747671294150,4.07300079,2455.2,2454.8,8.36]
[1747671294151,4.07305635,2455.2,2454.8,8.36]
[1747671294358,4.07324038,2455.1,2454.8,8.36]
[1747671294557,4.07324038,2455.1,2454.9,1.3347239]
[1747671295475,4.07307763,2455.2,2454.9,1.3347239]
[1747671296084,4.07316173,2455.1,2454.9,1.3347239]
[1747671296786,4.07287956,2455.3,2454.9,1.3347239]
[1747671296992,4.07273514,2455.4,2454.9,1.3347239]
[1747671297186,4.07289523,2455.3,2455.0,1.3768337]
[1747671297386,4.07273514,2455.4,2455.0,1.3768337]
[1747671297595,4.07250136,2455.5,2455.1,0.8982]
[1747671298412,0.3679,2455.7,2455.1,0.8982]
[1747671298413,4.07278761,2455.4,2455.1,0.8982]
[1747671298705,4.07278761,2455.4,2455.1,1.68180399]
[1747671299101,4.07278761,2455.4,2455.1,0.8982]
[1747671299409,4.07282667,2455.3,2455.1,0.8982]
[1747671299779,4.07235036,2455.6,2455.1,0.8982]
[1747671300091,4.07265899,2455.4,2455.1,0.8982]
[1747671300295,4.07263372,2455.5,2455.1,1.54831647]
[1747671300296,4.0725878,2455.5,2455.1,1.54831647]
[1747671300495,4.07249032,2455.5,2455.1,1.54831647]
[1747671300692,4.07266407,2455.4,2455.1,1.54831647]
[1747671302004,4.07298794,2455.2,2455.1,1.54831647]
[1747671302308,0.3679,2456.0,2455.2,8.0]
[1747671302506,4.07208534,2455.8,2455.2,12.07290999]
[1747671302683,4.07216383,2455.7,2455.3,7.06224138]
[1747671302902,4.43924937,2456.2,2455.4,4.07258834]
[1747671303208,4.07189616,2455.9,2455.4,4.07258834]
[1747671303393,4.07189616,2455.9,2455.6,0.9234]
[1747671303595,4.07189616,2455.9,2455.6,9.2834]
[1747671303799,4.07189616,2455.9,2455.7,1.33558866]
[1747671304308,4.07249032,2455.5,2455.4,8.51195424]
[1747671304495,4.07241046,2455.6,2455.4,8.51195424]
[1747671304694,0.3679,2456.1,2455.4,8.51195424]
[1747671304912,4.07170949,2456.0,2455.6,0.917]
[1747671305109,4.07151996,2456.1,2455.6,0.917]
[1747671305314,4.07151996,2456.1,2455.6,4.98919402]
[1747671305607,4.0716665,2456.0,2455.7,0.22705881]
[1747671305777,4.0716665,2456.0,2455.7,1.25021605]
[1747671305976,4.07158139,2456.1,2455.7,1.25021605]
[1747671306288,4.07161304,2456.1,2455.7,1.25021605]
[1747671306489,4.07164589,2456.1,2455.8,8.58605881]
[1747671306981,4.07164589,2456.1,2455.9,0.22705881]
[1747671307187,4.07164589,2456.1,2455.9,1.18798042]
[1747671307515,4.07083248,2456.5,2455.9,1.18798042]
[1747671307516,4.07093993,2456.5,2456.0,5.02395095]
[1747671307882,0.4679,2456.9,2456.1,4.29845084]
[1747671308076,4.07095237,2456.5,2456.1,0.22705881]
[1747671308518,4.07095237,2456.5,2456.2,0.22705881]
[1747671308712,4.07095237,2456.5,2456.3,8.359]
[1747671309010,4.07095237,2456.5,2456.3,9.21760588]
[1747671309209,4.07072799,2456.6,2456.3,9.21760588]
[1747671309624,0.1,2456.9,2456.4,0.9239]
[1747671309778,0.1,2456.9,2456.4,8.9239]
[1747671309980,4.07047265,2456.8,2456.6,0.9239]
[1747671310294,4.07044821,2456.8,2456.7,8.358]
[1747671310499,4.17023965,2456.9,2456.7,8.358]
[1747671310900,4.17024629,2456.9,2456.7,8.358]
[1747671311604,4.17024629,2456.9,2456.7,8.64534602]
[1747671311816,4.17024629,2456.9,2456.8,0.9569246]
[1747671311817,0.1,2456.9,2456.8,0.9569246]
[1747671311998,0.1,2456.9,2456.8,1.22604311]
[1747671312533,0.1,2456.9,2456.8,9.81009973]
[1747671312932,0.1,2456.9,2456.8,9.58404311]
[1747671313322,4.17016972,2456.9,2456.8,9.58404311]
[1747671313800,0.1,2456.9,2456.8,9.58404311]
[1747671314130,4.17016972,2456.9,2456.8,0.26911851]
[1747671315000,12.53806972,2456.9,2456.8,0.26911851]
[1747671315196,13.08806972,2456.9,2456.8,0.26911851]
[1747671316001,12.53806972,2456.9,2456.8,0.26911851]
[1747671316203,16.90603342,2456.9,2456.8,0.26911851]
[1747671318731,12.53806972,2456.9,2456.8,0.26911851]
[1747671318933,4.53806972,2456.9,2456.8,0.26911851]
[1747671319520,4.17016972,2456.9,2456.8,0.26911851]
[1747671323275,0.1,2456.9,2456.8,0.26911851]
[1747671323844,0.1,2456.9,2456.8,9.17635526]
[1747671324040,4.17016972,2456.9,2456.8,9.13565404]
[1747671324237,4.17016972,2456.9,2456.8,8.61411851]
[1747671325278,0.1,2456.9,2456.8,8.61411851]
[1747671326785,0.1,2456.9,2456.8,8.84033663]
[1747671327578,0.1,2456.9,2456.8,12.91067202]
[1747671327976,0.1,2456.9,2456.8,8.84033663]
[1747671328165,0.1,2456.9,2456.8,10.62603552]
[1747671329397,12.17016972,2456.9,2456.8,0.49533663]
[1747671330084,15.98813342,2456.9,2456.8,0.49533663]
[1747671330274,16.88453342,2456.9,2456.8,0.26911851]
[1747671331396,16.33453342,2456.9,2456.8,0.26911851]
[1747671331756,4.51656972,2456.9,2456.8,0.26911851]
[1747671331952,8.88453342,2456.9,2456.8,0.26911851]
[1747671332773,8.33453342,2456.9,2456.8,0.26911851]
[1747671332973,16.33453342,2456.9,2456.8,0.26911851]
[1747671334309,16.88453342,2456.9,2456.8,0.26911851]
[1747671335490,12.51656972,2456.9,2456.8,0.26911851]
[1747671336620,13.06656972,2456.9,2456.8,0.26911851]
[1747671336826,4.41772969,2456.2,2456.1,0.15295424]
[1747671337028,16.78569339,2456.2,2456.1,0.15295424]
[1747671338381,17.09182205,2456.2,2456.1,0.15295424]
[1747671338886,4.07132969,2456.2,2456.1,0.15295424]
[1747671339233,4.07004121,2457.0,2456.1,0.15295424]
[1747671339234,4.07107994,2456.4,2456.1,0.15295424]
[1747671339379,4.07131527,2456.3,2456.1,0.15295424]
[1747671339585,4.07132969,2456.2,2456.1,0.15295424]
[1747671339784,0.3464,2456.8,2456.1,0.15295424]
[1747671340034,4.07101313,2456.4,2456.1,0.15295424]
[1747671340184,4.07101313,2456.4,2456.2,0.22653525]
[1747671341230,4.07101313,2456.4,2455.9,4.94494602]
[1747671341537,3.9179637,2456.9,2456.0,9.6739946]
[1747671341696,4.07111181,2456.4,2456.0,9.6739946]
[1747671341886,4.07107852,2456.4,2456.2,0.859]
[1747671342918,4.07116394,2456.3,2456.2,0.859]
[1747671343081,4.07104822,2456.4,2456.2,0.859]
[1747671344188,4.07088769,2456.5,2456.3,0.9204]
[1747671345425,4.07077278,2456.6,2456.3,0.9204]
[1747671345630,4.07094916,2456.5,2456.3,0.9204]
[1747671347023,4.07084129,2456.5,2456.3,0.9204]
[1747671347321,4.0709982,2456.4,2456.3,0.9204]
[1747671348529,4.07039374,2456.8,2456.3,0.9204]
[1747671348697,0.1,2456.9,2456.3,0.9204]
[1747671348887,4.0709982,2456.4,2456.3,0.9204]
[1747671349093,4.07116394,2456.3,2456.2,0.859]
[1747671349287,4.07149546,2456.1,2456.0,1.09555424]
[1747671349520,4.07149546,2456.1,2456.0,9.44055424]
[1747671349945,4.07128827,2456.3,2456.0,9.44055424]
[1747671350243,4.07134788,2456.2,2456.1,0.22658507]
[1747671350538,4.41684864,2456.8,2456.1,0.22658507]
[1747671350836,4.07149546,2456.1,2456.0,1.09555424]
[1747671351326,4.07141381,2456.2,2456.0,1.09555424]
[1747671351693,4.07141381,2456.2,2456.1,0.22662913]
[1747671352111,4.07119827,2456.3,2456.1,0.22662913]
[1747671352692,4.07132969,2456.2,2456.1,0.22662913]
[1747671352923,0.1,2456.9,2456.1,1.17695204]
[1747671353142,4.07116982,2456.3,2456.2,0.22662913]
[1747671353526,4.07116394,2456.3,2456.2,0.22662913]
[1747671353726,4.07116394,2456.3,2456.1,0.22662913]
[1747671354050,4.07077726,2456.6,2456.1,0.22662913]
[1747671354351,4.07083532,2456.5,2456.0,5.01419065]
[1747671354516,4.07083532,2456.5,2456.2,0.22680337]
[1747671355149,4.07053764,2456.7,2456.3,0.9043]
[1747671355646,4.07066769,2456.6,2456.4,0.22680337]
[1747671356211,4.07066769,2456.6,2456.5,0.22677414]
[1747671356712,4.0709982,2456.4,2456.3,8.334]
[1747671357113,4.07067129,2456.6,2456.3,9.26183]
[1747671357340,4.07067129,2456.6,2456.4,0.22689531]
[1747671357746,4.07069886,2456.6,2456.4,0.22689531]
[1747671358128,4.07083248,2456.5,2456.4,0.22689531]
[1747671361227,4.07159369,2456.1,2455.9,0.15295424]
[1747671361428,0.4448,2456.9,2456.0,0.8781]
[1747671361629,4.07092032,2456.5,2456.0,4.94967395]
[1747671361950,4.07107576,2456.4,2456.1,0.91743174]
[1747671362145,4.07091721,2456.5,2456.1,0.91743174]
[1747671362836,4.07091721,2456.5,2456.2,8.334]
[1747671363238,4.07101856,2456.4,2456.2,8.334]
[1747671363768,4.07092479,2456.5,2456.2,8.334]
[1747671363973,4.07063333,2456.7,2456.4,0.8981]
[1747671364170,4.07067288,2456.6,2456.4,0.8981]
[1747671364404,4.07083248,2456.5,2456.4,0.8981]
[1747671364555,4.07075953,2456.6,2456.4,0.8981]
[1747671365046,4.07058965,2456.7,2456.4,0.8981]
[1747671365383,4.07060836,2456.7,2456.4,2.36167098]
[1747671365694,4.0707176,2456.6,2456.4,2.36167098]
[1747671365839,4.07071492,2456.6,2456.4,2.36167098]
[1747671366040,0.1,2456.9,2456.4,2.36167098]
[1747671366530,0.1,2456.9,2456.7,0.9032]
[1747671366875,0.1,2456.9,2456.8,8.333]
[1747671367047,4.17016972,2456.9,2456.8,9.25662]
[1747671367369,0.1,2456.9,2456.8,0.92362]
[1747671367578,0.1,2456.9,2456.8,8.333]
[1747671368167,0.1,2456.9,2456.7,0.9032]
[1747671368377,0.1,2456.9,2456.8,8.333]
[1747671368937,0.1,2456.9,2456.8,12.40333539]
[1747671369136,0.1,2456.9,2456.8,13.30053539]
[1747671369380,0.1,2456.9,2456.8,15.05294607]
[1747671369579,0.1,2456.9,2456.8,10.98261068]
[1747671370381,0.1,2456.9,2456.8,10.98161068]
[1747671370541,4.17016972,2456.9,2456.8,10.98161068]
[1747671370877,4.07066677,2456.6,2456.5,8.52186075]
[1747671371784,4.07066677,2456.6,2456.5,0.18986075]
[1747671371785,4.41546677,2456.6,2456.5,0.18986075]
[1747671372192,13.2698581,2456.6,2456.5,0.18986075]
[1747671372397,13.2698581,2456.6,2455.8,0.379955]
[1747671372398,4.07182702,2455.9,2455.8,0.379955]
[1747671372607,8.23459072,2455.9,2455.8,0.379955]
[1747671372998,16.78459072,2455.9,2455.8,0.379955]
[1747671373728,4.41662702,2455.9,2455.8,0.379955]
[1747671373908,4.07182702,2455.9,2455.4,0.47513834]
[1747671374093,8.83117531,2456.4,2455.5,8.334]
[1747671374441,4.07173507,2456.0,2455.6,0.8334]
[1747671374629,4.07156319,2456.1,2455.6,0.8334]
[1747671374840,4.07183799,2455.9,2455.6,0.8334]
[1747671375339,4.07182581,2456.0,2455.6,0.8334]
[1747671375701,4.07188317,2455.9,2455.6,0.8334]
[1747671375906,4.07188317,2455.9,2455.7,0.91674]
[1747671376649,4.07188317,2455.9,2455.5,8.334]
[1747671376805,3.8179637,2456.2,2455.3,0.9458]
[1747671377001,0.83117531,2456.4,2455.4,0.04072424]
[1747671377314,4.07190199,2455.9,2455.4,4.07257348]
[1747671377743,0.3448,2456.4,2455.6,4.07223604]
[1747671377942,0.3448,2456.4,2455.7,9.24217052]
[1747671377943,4.07146627,2456.2,2455.7,9.24217052]
[1747671378112,4.07150515,2456.1,2455.7,9.24217052]
[1747671378316,4.07168303,2456.0,2455.7,9.24217052]
[1747671378517,4.07160922,2456.1,2455.7,9.24217052]
[1747671378726,4.07232448,2455.6,2455.5,0.937]
[1747671378913,4.07265618,2455.4,2455.3,0.15288541]
[1747671379626,0.3448,2455.9,2455.3,0.15288541]
[1747671379827,4.07149641,2456.1,2455.5,0.8667]
[1747671380029,4.07232448,2455.6,2455.5,0.8667]
[1747671380656,4.07252404,2455.5,2455.3,8.334]
[1747671380857,4.07282205,2455.3,2455.2,0.9191]
[1747671381218,4.07294387,2455.3,2455.1,8.334]
[1747671381618,4.07278158,2455.4,2455.1,9.50553889]
[1747671381971,4.07282833,2455.3,2455.1,9.50553889]
[1747671382157,4.07315384,2455.1,2455.0,0.8752]
[1747671383933,4.07331975,2455.0,2454.9,17.576]
[1747671384266,4.07348568,2454.9,2454.8,8.323]
[1747671384954,4.07236079,2455.6,2454.8,9.24347]
[1747671385141,4.07255222,2455.5,2455.0,0.8817]
[1747671385468,4.07239924,2455.6,2455.1,4.07307222]
[1747671385633,4.0724887,2455.6,2455.1,4.07307222]
[1747671385837,4.0721468,2455.8,2455.2,9.29547722]
[1747671386055,4.0721468,2455.8,2455.3,0.9129]
[1747671386367,4.0722726,2455.7,2455.3,9.2359]
[1747671386557,4.0721468,2455.8,2455.3,13.3086654]
[1747671386558,4.07208142,2455.8,2455.3,13.3086654]
[1747671386865,0.3456,2456.5,2455.7,4.07208586]
[1747671387079,4.07126816,2456.3,2455.9,0.8929]
[1747671387285,4.6484571,2456.7,2455.9,0.8929]
[1747671387440,4.07199283,2455.8,2455.7,8.81949859]
[1747671387646,4.07166123,2456.0,2455.7,8.81949859]
[1747671387847,4.07166123,2456.0,2455.8,0.97134986]
[1747671388044,4.07166862,2456.0,2455.8,0.97134986]
[1747671388279,4.07182702,2455.9,2455.8,0.97134986]
[1747671388583,4.07199283,2455.8,2455.7,8.323]
[1747671388742,4.07190488,2455.9,2455.6,0.894]
[1747671388947,4.07202806,2455.8,2455.6,0.894]
[1747671389188,4.0717307,2456.0,2455.6,0.894]
[1747671389386,4.07116073,2456.4,2455.8,4.07184049]
[1747671389585,4.07083248,2456.5,2455.9,0.865]
[1747671389586,4.07117405,2456.3,2455.9,0.865]
[1747671389772,4.07117405,2456.3,2456.0,8.323]
[1747671389971,4.07149546,2456.1,2455.9,0.865]
[1747671390175,4.07166123,2456.0,2455.9,0.865]
[1747671390376,4.07199283,2455.8,2455.7,0.9199]
[1747671390573,4.07190143,2455.9,2455.7,0.9199]
[1747671390765,4.07199283,2455.8,2455.7,0.9199]
[1747671392294,4.07124016,2456.3,2455.7,5.91624501]
[1747671392457,0.3456,2456.6,2456.1,4.07142551]
[1747671392657,11.9179637,2456.9,2456.4,0.8733]
[1747671392658,0.1,2456.9,2456.4,0.8733]
[1747671392861,0.1,2456.9,2456.3,12.07105354]
[1747671392862,0.1,2456.9,2456.8,12.07033539]
[1747671393069,0.1,2456.9,2456.8,22.88071585]
[1747671393270,0.1,2456.9,2456.8,14.55771585]
[1747671393592,0.1,2456.9,2456.8,23.43071585]
[1747671393802,4.06868468,2457.8,2457.3,4.06936987]
[1747671394014,0.1,2457.9,2457.4,9.27]
[1747671394163,4.16852831,2457.9,2457.5,1.3339378]
[1747671394357,4.06870085,2457.8,2457.5,1.3339378]
[1747671395257,4.16860477,2457.9,2457.5,1.3339378]
[1747671395456,4.16860048,2457.9,2457.5,1.3339378]
[1747671395700,4.06869384,2457.8,2457.5,1.3339378]
[1747671396295,0.1,2457.9,2457.4,0.947]
[1747671396500,4.06890549,2457.7,2457.4,0.947]
[1747671396858,0.1,2457.9,2457.4,0.947]
[1747671397074,4.06909967,2457.6,2457.4,0.947]
[1747671397274,4.06902295,2457.6,2457.4,0.947]
[1747671397500,4.06917599,2457.5,2457.4,0.947]
[1747671397689,4.06967279,2457.2,2457.1,0.856]
[1747671397888,4.06983842,2457.1,2457.0,17.581]
[1747671398129,4.06957258,2457.3,2457.0,25.901]
[1747671398276,4.06983842,2457.1,2457.0,25.901]
[1747671398477,0.4455,2457.6,2457.0,25.901]
[1747671398808,16.32,2458.1,2457.3,0.9474]
[1747671398809,4.06928872,2457.5,2457.3,0.9474]
[1747671399694,4.06934158,2457.4,2457.3,0.9474]
[1747671400024,4.06884485,2457.7,2457.0,26.8484]
[1747671400206,4.06966922,2457.3,2457.0,26.8484]
[1747671400406,4.06966922,2457.3,2457.0,29.69464805]
[1747671400604,4.06966922,2457.3,2456.7,1.08043524]
[1747671400605,4.07016972,2456.9,2456.7,1.08043524]
[1747671400788,4.07027203,2456.9,2456.7,9.2469]
[1747671401178,4.07008611,2457.0,2456.7,9.2469]
[1747671401593,4.06996869,2457.1,2456.7,9.2469]
[1747671402210,4.07002633,2457.0,2456.7,9.2469]
[1747671402414,4.07002633,2457.0,2456.8,1.33175176]
[1747671402577,4.06928899,2457.5,2456.8,5.40201744]
[1747671402779,4.0695482,2457.3,2456.8,1.33175176]
[1747671402975,4.0698555,2457.1,2456.8,1.33175176]
[1747671403212,4.0701197,2457.0,2456.8,1.33175176]
[1747671403719,4.07016972,2456.9,2456.8,1.33175176]
[1747671403922,4.06989408,2457.1,2456.8,8.319]
[1747671404134,4.06951863,2457.3,2456.8,8.319]
[1747671404417,4.07014059,2457.0,2456.8,8.319]
[1747671404787,4.06975538,2457.2,2456.8,8.319]
[1747671404986,4.06975538,2457.2,2456.9,1.33173703]
[1747671405182,4.06931891,2457.5,2457.0,4.06991463]
[1747671405405,4.06931152,2457.5,2456.9,5.40183116]
[1747671405615,3.8179637,2457.8,2457.0,1.37208312]
[1747671405922,4.06970173,2457.2,2457.0,8.319]
[1747671406224,4.06970173,2457.2,2456.8,4.0703239]
[1747671406517,4.06960488,2457.3,2456.9,8.318]
[1747671406816,4.06925383,2457.5,2457.0,4.06990071]
[1747671407323,4.06925383,2457.5,2457.1,0.9105]
[1747671407503,4.06958521,2457.3,2457.1,2.64735417]
[1747671407707,4.06958521,2457.3,2457.1,0.9105]
[1747671407903,4.06943924,2457.4,2457.1,0.9105]
[1747671408313,4.06912397,2457.6,2457.1,0.9105]
[1747671408516,4.06927373,2457.5,2457.1,0.9105]
[1747671410156,4.06935046,2457.4,2457.1,0.9105]
[1747671410351,4.0695712,2457.3,2457.1,0.9105]
[1747671410631,4.06993723,2457.1,2456.9,8.318]
[1747671412251,4.06973761,2457.2,2456.9,8.318]
[1747671412398,4.06922745,2457.5,2456.9,12.38812195]
[1747671412605,4.61404556,2457.9,2457.0,5.39687015]
[1747671412801,4.0691086,2457.6,2457.1,4.06973374]
[1747671412998,4.16863098,2457.9,2457.4,4.06925972]
[1747671413202,0.1,2457.9,2457.6,4.96121303]
[1747671413624,4.06884485,2457.7,2457.6,0.8923]
[1747671413829,4.06884485,2457.7,2457.6,9.2013]
[1747671414033,0.1,2457.9,2457.6,9.2013]
[1747671414307,4.06872426,2457.8,2457.6,10.12143]
[1747671414823,4.16857393,2457.9,2457.6,1.81243]
[1747671415029,4.16857393,2457.9,2457.7,8.309]
[1747671415444,0.1,2457.9,2457.7,8.309]
[1747671415605,4.16852817,2457.9,2457.7,8.309]
[1747671415805,0.1,2457.9,2457.7,9.72805335]
[1747671417954,0.1,2457.9,2457.7,13.79686713]
[1747671418840,0.1,2457.9,2457.8,4.0686793]
[1747671419418,0.1,2457.9,2457.8,4.19878107]
[1747671419751,0.1,2457.9,2457.8,6.08757589]
[1747671420418,0.1,2457.9,2457.8,6.95167589]
[1747671421253,0.1,2457.9,2457.8,61.40775689]
[1747671421458,0.1,2457.9,2457.8,29.04457589]
[1747671421818,0.1,2457.9,2457.8,27.42549489]
[1747671422242,0.1,2458.9,2457.9,0.55]
[1747671422432,0.1,2458.9,2458.8,4.06702456]
[1747671422632,0.1,2458.9,2458.8,13.31902456]
[1747671422857,0.1,2458.9,2458.8,0.946]
[1747671423061,0.1,2458.9,2458.8,9.252]
[1747671423460,0.1,2458.9,2458.8,13.31902456]
[1747671423661,0.1,2458.9,2458.8,10.9906099]
[1747671423863,0.1,2458.9,2458.8,15.18773623]
[1747671424378,0.1,2458.9,2458.8,11.11971167]
[1747671425056,0.1,2458.9,2458.8,19.11971167]
[1747671425465,0.1,2458.9,2458.8,23.18673623]
[1747671427464,4.06537116,2459.8,2459.2,8.0]
[1747671427663,4.06573706,2459.6,2459.4,8.0]
[1747671427848,4.06567037,2459.7,2459.4,8.0]
[1747671428269,0.1,2459.9,2459.5,0.8568]
[1747671428478,0.1,2459.9,2459.6,4.06568517]
[1747671428635,0.1,2459.9,2459.6,1.29224852]
[1747671428833,4.06537871,2459.8,2459.6,1.29224852]
[1747671429038,4.16530137,2459.9,2459.6,1.29224852]
[1747671429283,0.1,2459.9,2459.6,1.29224852]
[1747671430096,0.1,2459.9,2459.6,5.3579445]
[1747671430251,0.1,2459.9,2459.7,0.62147445]
[1747671430457,0.1,2459.9,2459.8,17.189]
[1747671430789,0.1,2459.9,2459.8,21.25437116]
[1747671432296,0.1,2459.9,2459.8,21.25337116]
[1747671433062,0.1,2459.9,2459.8,8.885]
[1747671433505,0.1,2459.9,2459.8,17.186]
[1747671433704,4.1652059,2459.9,2459.8,8.0]
[1747671434002,4.1652059,2459.9,2459.8,16.301]
[1747671434203,0.1,2459.9,2459.8,8.301]
[1747671434949,0.1,2459.9,2459.7,8.0]
[1747671435156,0.1,2459.9,2459.8,21.16637116]
[1747671435451,0.1,2459.9,2459.8,22.11137116]
[1747671435649,0.1,2459.9,2459.8,18.046]
[1747671435919,0.1,2459.9,2459.8,17.101]
[1747671436451,0.1,2459.9,2459.8,22.11207116]
[1747671437101,0.1,2459.9,2459.8,18.0467]
[1747671437396,0.1,2459.9,2459.8,22.11207116]
[1747671438086,4.1652059,2459.9,2459.8,18.0467]
[1747671438412,4.06572069,2459.6,2459.4,0.9143]
[1747671438569,4.16529239,2459.9,2459.7,8.3]
[1747671438754,4.16522992,2459.9,2459.7,8.3]
[1747671438953,4.06537116,2459.8,2459.7,8.3]
[1747671439349,4.06578298,2459.6,2459.4,8.9143]
[1747671439594,4.06561923,2459.7,2459.5,11.06819528]
[1747671439800,4.06570174,2459.6,2459.5,19.06819528]
[1747671439978,4.06570174,2459.6,2459.5,8.3]
[1747671440405,4.06562414,2459.7,2459.5,8.3]
[1747671440704,4.06588016,2459.5,2459.3,18.76765284]
[1747671440862,4.06601604,2459.5,2459.4,8.3]
[1747671441052,4.06570174,2459.6,2459.4,8.3]
[1747671441053,4.06579355,2459.6,2459.4,8.3]
[1747671441301,4.06561457,2459.7,2459.4,8.3]
[1747671441891,0.1,2459.9,2459.5,4.94646273]
[1747671442056,0.1,2459.9,2459.6,1.32464627]
[1747671442557,0.1,2459.9,2459.7,8.0]
[1747671442970,0.1,2459.9,2459.7,12.06538121]
[1747671443190,0.1,2459.9,2459.8,4.06537116]
[1747671443386,0.1,2459.9,2459.8,4.94707116]
[1747671443653,0.1,2459.9,2459.8,6.78079583]
[1747671443853,0.1,2459.9,2459.8,6.91078591]
[1747671444087,0.1,2459.9,2459.8,14.91078591]
[1747671444976,0.1,2459.9,2459.8,15.46078591]
[1747671445712,0.1,2459.9,2459.8,39.28468491]
[1747671446008,0.1,2459.9,2459.8,31.31369991]
[1747671446914,0.1,2459.9,2459.8,29.89975091]
[1747671447117,0.1,2459.9,2459.8,24.89975091]
[1747671447331,0.1,2459.9,2459.8,25.10221681]
[1747671447611,0.1,2460.9,2460.6,4.94559744]
[1747671447811,0.1,2460.9,2460.7,9.18997388]
[1747671448171,0.1,2460.9,2460.7,13.25383664]
[1747671448367,0.1,2460.9,2460.8,12.06371911]
[1747671448575,0.1,2460.9,2460.8,8.12999008]
[1747671448768,0.1,2460.9,2460.8,10.76293532]
[1747671449389,0.1,2460.9,2460.8,19.05093532]
[1747671451005,0.1,2460.9,2460.8,23.11465443]
[1747671451208,0.1,2460.9,2460.8,19.05093532]
[1747671451414,4.16355398,2460.9,2460.8,10.76293532]
[1747671451721,0.1,2460.9,2460.8,16.41699008]
[1747671453579,4.16355398,2460.9,2460.8,16.41699008]
[1747671453781,0.1,2460.9,2460.8,16.41699008]
[1747671454193,0.1,2460.9,2460.8,8.12999008]
[1747671454385,0.1,2460.9,2460.8,16.41599008]
[1747671454586,0.1,2460.9,2460.8,10.28129778]
[1747671454789,0.1,2460.9,2460.8,16.41599008]
[1747671455130,0.1,2460.9,2460.8,20.47970919]
[1747671455341,0.1,2460.9,2460.8,16.41599008]
[1747671455483,0.1,2460.9,2460.8,20.47970919]
[1747671456427,0.1,2460.9,2460.8,16.41599008]
[1747671456631,0.1,2460.9,2460.8,18.97367656]
[1747671456932,0.1,2460.9,2460.8,23.03739567]
[1747671457282,0.1,2460.9,2460.8,23.98399567]
[1747671457811,0.1,2460.9,2460.8,39.99417867]
[1747671458137,0.1,2461.9,2460.8,39.99417867]
[1747671458138,0.1,2461.9,2461.8,12.9600684]
[1747671458336,0.1,2461.9,2461.8,22.94829814]
[1747671459052,0.1,2461.9,2461.8,14.66229814]
[1747671459255,0.1,2461.9,2461.8,22.94829814]
[1747671460444,0.1,2461.9,2461.8,23.49829814]
[1747671461246,0.1,2461.9,2461.8,37.99829814]
[1747671462016,0.1,2461.9,2461.8,81.09881306]
[1747671462276,0.1,2461.9,2461.8,75.12857406]
[1747671462447,0.42825609,2461.9,2461.8,25.10022974]